bitfinex-derivatives/quotes_SOLF0:USTF0_20260316
["timestamp","ask_amount","ask_price","bid_price","bid_amount"]
[1773681606049,10.20745681,93.979,93.93,3.62405522]
[1773681606247,10.20745681,93.979,93.931,117.0]
[1773681606550,10.21584201,93.994,93.94,3.62405522]
[1773681607350,10.21584201,93.994,93.95,3.62405522]
[1773681607550,338.7390096,94.064,93.96,3.62405522]
[1773681607551,10.21545216,94.016,93.96,3.62405522]
[1773681612854,10.21545216,94.016,93.961,117.0]
[1773681615854,10.21545216,94.016,93.962,117.0]
[1773681618858,10.21545216,94.016,93.963,117.0]
[1773681619451,10.21545216,94.016,93.96,3.62405522]
[1773681619857,10.21545216,94.016,93.97,3.62405522]
[1773681620857,10.21545216,94.016,93.949,117.0]
[1773681621055,10.21545216,94.016,93.97,3.62405522]
[1773681624960,10.21545216,94.016,93.971,117.0]
[1773681627265,10.20069311,94.03,93.98,3.62405522]
[1773681627566,305.2190096,94.064,93.99,3.62405522]
[1773681627567,10.20069311,94.046,93.99,3.62405522]
[1773681629061,11.12086279,94.141,94.04,3.62405522]
[1773681629264,11.12086279,94.141,94.11,3.62405522]
[1773681629460,11.12650809,94.175,94.13,3.62405522]
[1773681629664,11.12650809,94.175,94.091,31.97]
[1773681629867,11.12650809,94.175,94.13,3.62405522]
[1773681632773,11.12650809,94.175,94.13,3.60796229]
[1773681632978,11.12650809,94.175,94.12,3.60796229]
[1773681633372,11.24865203,94.159,94.1,3.60796229]
[1773681634674,11.24865203,94.159,94.11,3.60796229]
[1773681634874,11.24865203,94.159,94.1,117.0]
[1773681634875,11.24865203,94.159,94.1,120.60796229]
[1773681635774,11.24865203,94.159,94.11,3.60796229]
[1773681638575,33.5,94.218,94.12,3.60796229]
[1773681638576,11.23115085,94.175,94.12,3.60796229]
[1773681638779,11.23115085,94.175,94.09,8.59213107]
[1773681640082,11.23115085,94.175,94.091,35.28]
[1773681642282,11.23115085,94.175,94.087,35.36]
[1773681644786,11.23115085,94.175,94.088,117.0]
[1773681645486,8.59213107,94.17,94.088,117.0]
[1773681645688,11.20276751,94.169,94.06,35.46]
[1773681646590,10.8982422,94.159,94.06,35.46]
[1773681646792,10.8982422,94.159,94.07,8.59213107]
[1773681647592,10.8982422,94.159,94.071,31.97]
[1773681650295,19.11,94.185,94.071,31.97]
[1773681650490,10.5485687,94.174,94.09,8.59213107]
[1773681651194,10.5485687,94.174,94.072,31.97]
[1773681651495,10.5485687,94.174,94.071,31.97]
[1773681652896,10.5485687,94.174,94.07,8.59213107]
[1773681653096,10.5485687,94.174,94.09,8.59213107]
[1773681653798,10.46282838,94.191,94.11,8.59213107]
[1773681653997,10.46282838,94.191,94.111,35.72]
[1773681660003,22.57101635,94.176,94.111,35.72]
[1773681660203,10.4980396,94.175,94.11,8.59213107]
[1773681660405,10.4980396,94.175,94.11,44.01213107]
[1773681660803,10.4980396,94.175,94.12,3.60821353]
[1773681661204,10.4980396,94.175,94.11,3.60821353]
[1773681661606,10.4980396,94.175,94.12,3.60821353]
[1773681662808,10.50099852,94.169,94.11,3.60821353]
[1773681663908,12.07297675,94.176,94.14,3.60821353]
[1773681664606,12.07297675,94.176,94.13,3.60821353]
[1773681666705,12.07297675,94.176,94.104,31.97]
[1773681666906,10.51692543,94.218,94.16,3.60821353]
[1773681667107,10.51692543,94.218,94.104,31.97]
[1773681667108,10.51692543,94.218,94.15,3.60821353]
[1773681667908,3.60821353,94.21,94.15,3.60821353]
[1773681668213,10.52409502,94.199,94.13,3.60821353]
[1773681668512,10.52409502,94.199,94.14,3.60821353]
[1773681668911,10.52409502,94.199,94.13,3.60821353]
[1773681669113,3.60821353,94.19,94.13,3.60821353]
[1773681669413,10.52064558,94.189,94.059,31.97]
[1773681669613,10.52064558,94.169,94.1,3.60821353]
[1773681669813,10.52064558,94.169,94.11,3.60821353]
[1773681670208,10.52064558,94.169,94.12,3.60821353]
[1773681670413,10.51926992,94.159,94.061,31.97]
[1773681670613,10.51926992,94.149,94.09,3.60821353]
[1773681670914,10.51926992,94.149,94.1,3.60821353]
[1773681671519,10.51926992,94.149,94.056,34.8]
[1773681671717,10.51926992,94.149,94.09,3.60821353]
[1773681672313,10.51926992,94.149,94.056,34.8]
[1773681672512,10.49135382,94.129,94.06,3.60821353]
[1773681672810,10.49135382,94.129,94.04,8.60229935]
[1773681674124,10.49135382,94.129,93.988,19.15]
[1773681674323,10.49135382,94.129,94.02,8.60229935]
[1773681678326,10.49135382,94.129,94.046,479.78320434]
[1773681680729,10.49135382,94.129,94.046,444.34320434]
[1773681680929,10.49135382,94.129,94.047,35.64]
[1773681685034,10.18641304,94.109,94.047,117.0]
[1773681685326,10.18641304,94.109,94.033,35.94]
[1773681685530,8.60229935,94.11,93.98,8.60229935]
[1773681685531,10.19367632,94.089,93.98,8.60229935]
[1773681685732,10.19367632,94.089,93.981,35.88]
[1773681687231,10.19367632,94.089,93.982,35.94]
[1773681687533,19.13,94.087,93.982,35.94]
[1773681687734,10.20615416,94.086,93.982,35.94]
[1773681688535,10.25958805,94.081,93.982,35.94]
[1773681688835,10.25958805,94.081,93.983,36.04]
[1773681689536,10.25962244,94.078,93.983,36.04]
[1773681690035,8.60229935,94.07,93.983,36.04]
[1773681690330,10.25962244,94.049,93.945,36.12]
[1773681690536,10.25962244,94.049,93.943,36.14]
[1773681691540,10.26041684,94.04,93.943,36.14]
[1773681691839,10.26041684,94.04,93.96,8.60229935]
[1773681692839,10.26041684,94.04,93.99,3.61861087]
[1773681696742,3.61861087,94.05,93.99,3.61861087]
[1773681696940,10.23977413,94.055,94.0,3.61861087]
[1773681699342,10.28529774,94.049,93.991,100.819]
[1773681699542,10.28529774,94.039,93.991,100.819]
[1773681700039,10.28529774,94.039,93.992,100.819]
[1773681702942,10.28529774,94.039,93.993,100.819]
[1773681703146,10.23874288,94.059,94.0,3.61861087]
[1773681703347,10.23874288,94.049,93.992,100.819]
[1773681706248,10.23807281,94.047,93.964,36.48]
[1773681706446,10.23799625,94.039,93.941,36.48]
[1773681706746,10.23799625,94.039,93.942,36.48]
[1773681707552,10.12481448,94.032,93.942,36.48]
[1773681710553,10.04157643,94.026,93.942,36.48]
[1773681711554,9.99400511,94.021,93.942,36.48]
[1773681713253,9.99400511,94.021,93.93,8.6163423]
[1773681713754,9.99400511,94.021,93.931,36.72]
[1773681716054,29.13700511,94.021,93.871,31.97]
[1773681716256,9.9907953,94.019,93.913,36.9]
[1773681716452,9.9907953,94.019,93.92,8.6163423]
[1773681717557,10.00538021,94.008,93.92,8.6163423]
[1773681719960,10.00482546,94.004,93.9,8.6163423]
[1773681720260,10.00482546,94.004,93.913,37.2]
[1773681721657,10.00482546,94.004,93.914,37.34]
[1773681722360,10.01805581,94.0,93.915,37.4]
[1773681722862,10.01805581,94.0,93.92,8.6163423]
[1773681723656,19.148,93.999,93.92,8.6163423]
[1773681723955,9.96660779,93.998,93.92,37.56]
[1773681725560,10.00473864,93.995,93.92,37.56]
[1773681727163,19.149,93.991,93.92,37.56]
[1773681727361,10.00759072,93.99,93.92,37.56]
[1773681730165,10.05968128,93.988,93.92,37.56]
[1773681730864,10.07253395,93.986,93.92,37.56]
[1773681731761,10.06856074,93.983,93.88,8.6163423]
[1773681731966,10.06856074,93.983,93.9,38.3]
[1773681732264,33.52,94.028,93.9,38.3]
[1773681732265,10.06856074,93.972,93.9,38.3]
[1773681732466,10.07431619,93.959,93.873,38.3]
[1773681732767,10.07431619,93.959,93.87,38.24]
[1773681732967,10.07431619,93.959,93.871,38.1]
[1773681733766,10.10941443,93.951,93.871,38.1]
[1773681735562,10.11403258,93.949,93.871,38.1]
[1773681736670,10.11461404,93.946,93.871,38.1]
[1773681738865,33.52,93.964,93.89,3.62742629]
[1773681738866,10.02672493,93.949,93.89,3.62742629]
[1773681739473,10.02672493,93.949,93.871,38.1]
[1773681739774,10.02672493,93.949,93.89,3.62742629]
[1773681739974,10.01894808,93.929,93.871,38.1]
[1773681741477,10.01894808,93.929,93.88,3.62742629]
[1773681742178,10.01874515,93.944,93.88,3.62742629]
[1773681742477,10.01874515,93.939,93.88,3.62742629]
[1773681742677,3.62742629,93.93,93.88,3.62742629]
[1773681742978,10.01424881,93.929,93.871,38.1]
[1773681745578,10.01424881,93.929,93.88,3.62742629]
[1773681745974,10.03271403,93.939,93.88,3.62742629]
[1773681746180,10.03271403,93.929,93.871,38.1]
[1773681746382,10.0429722,93.919,93.871,38.1]
[1773681746577,3.62742629,93.9,93.84,3.62742629]
[1773681746881,10.0429722,93.924,93.86,3.62742629]
[1773681747082,10.0429722,93.924,93.87,3.62742629]
[1773681747277,10.0429722,93.924,93.841,38.78]
[1773681747482,10.0429722,93.924,93.87,3.62742629]
[1773681748583,10.0429722,93.924,93.88,3.62742629]
[1773681749784,10.05974648,93.946,93.89,3.62742629]
[1773681749984,10.05974648,93.946,93.88,3.62742629]
[1773681750586,10.05851287,93.939,93.88,3.62742629]
[1773681750785,10.05851287,93.939,93.87,3.62742629]
[1773681751986,3.62742629,93.93,93.87,3.62742629]
[1773681752186,10.05862798,93.929,93.87,3.62742629]
[1773681754786,10.05862798,93.929,93.87,3.62771922]
[1773681755389,10.05862798,93.929,93.88,3.62771922]
[1773681756391,10.04149342,93.949,93.89,3.62771922]
[1773681756788,10.04204932,93.964,93.91,3.62771922]
[1773681757486,3.62771922,93.96,93.9,3.62771922]
[1773681757789,10.05105538,93.959,93.9,3.62771922]
[1773681758089,10.05105538,93.959,93.91,3.62771922]
[1773681758590,10.05105538,93.959,93.92,3.62771922]
[1773681758790,10.05105538,93.959,93.91,3.62771922]
[1773681759088,10.15122433,93.974,93.93,3.62771922]
[1773681759286,10.15122433,93.974,93.94,3.62771922]
[1773681759586,10.15122433,93.999,93.94,3.62771922]
[1773681760287,33.52,94.011,93.96,3.62771922]
[1773681760488,10.15277682,94.014,93.96,3.62771922]
[1773681760786,10.15277682,94.014,93.97,3.62771922]
[1773681760988,10.15277682,94.014,93.95,3.62771922]
[1773681761187,10.15277682,94.014,93.96,3.62771922]
[1773681763491,10.18013475,94.009,93.95,3.62771922]
[1773681764893,10.18013475,94.009,93.94,3.62771922]
[1773681765694,10.18013475,94.009,93.95,3.62771922]
[1773681767595,3.62771922,94.0,93.94,3.62771922]
[1773681767794,10.18013475,94.009,93.95,3.62771922]
[1773681768893,10.18013475,94.009,93.96,3.62771922]
[1773681769591,10.18013475,94.009,93.95,3.62771922]
[1773681771297,10.18013475,94.009,93.94,3.62771922]
[1773681771497,10.18013475,94.009,93.941,100.819]
[1773681771698,10.07647629,93.999,93.941,100.819]
[1773681773297,10.07647629,93.999,93.95,3.62771922]
[1773681774300,10.07647629,93.999,93.887,100.819]
[1773681774598,10.07647629,93.999,93.95,3.62771922]
[1773681774798,10.07647629,93.999,93.96,3.62771922]
[1773681775801,10.08853543,93.989,93.877,37.34]
[1773681775999,10.08853543,93.989,93.94,3.62771922]
[1773681776207,10.08853543,94.009,93.94,3.62771922]
[1773681776904,3.62771922,94.0,93.94,3.62771922]
[1773681780108,10.12333711,93.999,93.94,3.62771922]
[1773681781308,10.12333711,93.999,93.879,31.97]
[1773681781309,3.62771922,93.99,93.93,3.62771922]
[1773681781509,10.12362875,93.989,93.93,3.62771922]
[1773681783212,10.12362875,93.989,93.94,3.62771922]
[1773681784210,10.12362875,93.989,93.93,3.62771922]
[1773681790616,9.95279745,94.004,93.95,3.62771922]
[1773681790917,9.95279745,94.004,93.96,3.62771922]
[1773681792319,9.95279745,94.004,93.95,3.62771922]
[1773681793820,9.85864189,93.999,93.94,3.62771922]
[1773681794018,9.85864189,93.989,93.93,3.62771922]
[1773681795419,9.85864189,93.989,93.92,3.62771922]
[1773681795620,9.85864189,93.989,93.93,3.62771922]
[1773681798625,3.62771922,93.98,93.92,3.62771922]
[1773681798824,9.85300844,93.979,93.91,3.62771922]
[1773681799023,9.85300844,93.979,93.911,100.819]
[1773681800027,9.85300844,93.979,93.92,3.62771922]
[1773681800222,9.85154046,93.999,93.94,3.62771922]
[1773681800423,9.85154046,93.999,93.941,100.819]
[1773681801326,106.311,94.059,93.87,3.62771922]
[1773681801327,9.86002658,93.949,93.87,3.62771922]
[1773681801629,9.86002658,93.949,93.9,3.62771922]
[1773681803223,3.62771922,93.96,93.9,3.62771922]
[1773681803425,9.875856,93.964,93.91,3.62771922]
[1773681803726,9.84063725,93.979,93.92,3.62771922]
[1773681805025,9.84063725,93.979,93.91,3.62771922]
[1773681805624,3.62771922,93.97,93.91,3.62771922]
[1773681806424,9.84120507,94.004,93.892,31.97]
[1773681806618,9.84120507,94.004,93.94,3.62771922]
[1773681807124,9.84120507,93.999,93.94,3.62771922]
[1773681807326,9.84120507,93.979,93.915,36.7]
[1773681807525,9.84120507,93.979,93.91,3.62771922]
[1773681807724,9.84120507,93.979,93.92,3.62771922]
[1773681809027,9.83788369,93.969,93.91,3.62771922]
[1773681809430,3.62771922,93.96,93.9,3.62771922]
[1773681809624,9.84003559,93.959,93.9,3.62771922]
[1773681809823,9.84003559,93.959,93.91,3.62771922]
[1773681810829,9.84003559,93.959,93.893,36.52]
[1773681811029,9.84003559,93.959,93.91,3.62771922]
[1773681811830,9.84003559,93.959,93.9,3.62771922]
[1773681812835,9.84003559,93.959,93.91,3.62771922]
[1773681814036,9.84003559,93.959,93.911,82.725]
[1773681816433,9.84003559,93.959,93.92,3.62771922]
[1773681816638,9.84003559,93.959,93.921,82.725]
[1773681820036,9.84003559,93.959,93.922,82.725]
[1773681820634,3.62419502,93.98,93.922,82.725]
[1773681820833,9.84676064,93.979,93.923,82.725]
[1773681822938,9.91040741,93.969,93.923,82.725]
[1773681823237,9.91040741,93.959,93.923,82.725]
[1773681823431,9.91232338,93.949,93.891,82.725]
[1773681823632,9.91232338,93.949,93.892,82.725]
[1773681823839,3.62419502,93.94,93.892,82.725]
[1773681824137,9.91232338,93.939,93.88,3.62419502]
[1773681826838,9.91232338,93.939,93.89,3.62419502]
[1773681827641,9.91232338,93.939,93.878,37.64]
[1773681827642,9.91232338,93.939,93.9,3.62419502]
[1773681828140,9.94187168,93.959,93.9,3.62419502]
[1773681828837,9.94187168,93.959,93.91,3.62419502]
[1773681829540,9.94187168,93.959,93.92,3.62419502]
[1773681830042,9.94187168,93.959,93.89,38.04]
[1773681830239,9.94187168,93.959,93.91,3.62419502]
[1773681834842,9.94187168,93.959,93.911,82.725]
[1773681835039,9.94187168,93.959,93.92,3.62419502]
[1773681835446,9.94943035,93.973,93.93,3.62419502]
[1773681836049,9.94943035,93.973,93.92,3.62419502]
[1773681836646,9.94943035,93.973,93.912,82.725]
[1773681836847,3.62419502,93.98,93.912,82.725]
[1773681836848,9.94836462,93.969,93.912,82.725]
[1773681840946,9.94836462,93.969,93.91,3.62419502]
[1773681840947,9.94836462,93.969,93.913,82.725]
[1773681842352,9.94836462,93.969,93.92,3.62419502]
[1773681842750,9.94836462,93.969,93.913,82.725]
[1773681844050,9.94836462,93.969,93.911,82.725]
[1773681844350,9.94836462,93.969,93.912,82.725]
[1773681846659,9.98101577,93.959,93.9,86.34919502]
[1773681849259,9.9805631,93.939,93.9,82.725]
[1773681849461,9.9805631,93.939,93.881,82.725]
[1773681849757,9.9805631,93.939,93.882,82.725]
[1773681849952,9.9805631,93.939,93.89,3.62419502]
[1773681850149,9.9805631,93.939,93.9,3.62419502]
[1773681850448,3.62419502,93.96,93.876,38.72]
[1773681850449,9.99079642,93.977,93.92,3.62419502]
[1773681850650,9.99079642,93.977,93.93,3.62419502]
[1773681850853,9.99079642,93.977,93.94,3.62419502]
[1773681853458,9.96165429,93.997,93.94,3.62419502]
[1773681855862,9.96165429,93.997,93.93,3.62419502]
[1773681856956,9.96165429,93.997,93.94,3.62419502]
[1773681858163,9.95654882,93.989,93.93,3.62419502]
[1773681858862,9.95654882,93.989,93.94,3.62419502]
[1773681862969,9.95654882,93.989,93.941,82.725]
[1773681866867,9.95654882,93.989,93.95,3.62419502]
[1773681867472,9.95654882,93.989,93.941,82.725]
[1773681868073,9.95654882,93.989,93.94,3.62419502]
[1773681868267,9.95654882,93.989,93.93,3.62419502]
[1773681871076,9.95654882,93.989,93.931,82.725]
[1773681874077,9.95654882,93.989,93.932,82.725]
[1773681877077,9.95654882,93.989,93.933,82.725]
[1773681877878,9.95654882,93.989,93.94,3.62419502]
[1773681878780,9.95654882,93.989,93.933,82.725]
[1773681880079,9.95654882,93.989,93.934,82.725]
[1773681880681,9.95642916,93.979,93.934,82.725]
[1773681881282,9.95642916,93.979,93.921,82.725]
[1773681881481,9.95642916,93.979,93.92,3.62298476]
[1773681881482,9.95642916,93.979,93.922,82.725]
[1773681886085,9.95642916,93.979,93.923,82.725]
[1773681886587,9.95642916,93.979,93.93,3.62298476]
[1773681887085,9.95642916,93.979,93.923,82.725]
[1773681889090,9.92747778,93.949,93.878,38.6]
[1773681889387,9.92747778,93.949,93.89,3.62298476]
[1773681892798,9.92747778,93.949,93.9,3.62298476]
[1773681895797,9.92747778,93.949,93.89,3.62298476]
[1773681898100,9.92747778,93.949,93.891,82.725]
[1773681898500,9.94120241,93.959,93.9,3.62298476]
[1773681899401,9.94120241,93.959,93.91,3.62298476]
[1773681900396,9.94120241,93.959,93.9,3.62298476]
[1773681901103,9.94120241,93.959,93.901,82.725]
[1773681901702,9.93946248,93.949,93.901,82.725]
[1773681904101,9.93946248,93.949,93.9,3.62298476]
[1773681904700,9.93946248,93.949,93.891,82.725]
[1773681905102,9.93946248,93.949,93.89,3.62298476]
[1773681905405,9.93946248,93.949,93.9,3.62298476]
[1773681905905,9.93946248,93.949,93.91,3.62298476]
[1773681906207,9.93946248,93.949,93.884,38.96]
[1773681906504,9.93946248,93.949,93.91,3.62298476]
[1773681907507,9.93946248,93.949,93.9,3.62298476]
[1773681907706,9.93946248,93.949,93.89,3.62298476]
[1773681908103,9.93946248,93.949,93.9,3.62298476]
[1773681912715,9.93946248,93.949,93.89,3.62298476]
[1773681913116,9.93946248,93.949,93.891,82.725]
[1773681913317,9.93946248,93.949,93.9,3.62298476]
[1773681920321,10.0235657,93.962,93.92,3.62298476]
[1773681920621,10.03726006,93.959,93.9,3.62298476]
[1773681921118,10.03726006,93.959,93.892,39.32]
[1773681922720,10.027603,93.949,93.892,39.32]
[1773681928128,10.027603,93.949,93.893,82.725]
[1773681931129,10.027603,93.949,93.894,82.725]
[1773681934134,10.027603,93.949,93.895,82.725]
[1773681934633,10.027603,93.949,93.9,3.62298476]
[1773681935534,19.156,93.957,93.91,3.62298476]
[1773681936136,29.1938234,93.957,93.91,3.62298476]
[1773681936433,29.1938234,93.957,93.9,3.62298476]
[1773681937136,29.1938234,93.957,93.901,82.725]
[1773681937331,10.03628757,93.956,93.901,82.725]
[1773681939738,10.0356876,93.949,93.901,82.725]
[1773681940135,10.0356876,93.949,93.893,82.725]
[1773681941233,10.0377916,93.961,93.92,3.62549412]
[1773681941838,10.049388,93.975,93.93,3.62549412]
[1773681947741,10.049388,93.975,93.92,3.62549412]
[1773681948543,10.049388,93.975,93.93,3.62549412]
[1773681949845,10.049388,93.975,93.897,82.725]
[1773681950047,10.049388,93.975,93.93,3.62549412]
[1773681950344,10.049388,93.975,93.93,86.35049412]
[1773681951642,3.62549412,93.99,93.93,86.35049412]
[1773681951643,10.06330274,94.009,93.94,3.62549412]
[1773681951841,10.06330274,94.009,93.96,3.62549412]
[1773681952446,10.06330274,94.009,93.95,3.62549412]
[1773681953950,10.06330274,94.009,93.96,3.62549412]
[1773681957249,10.06330274,94.009,93.97,3.62549412]
[1773681957547,10.06332323,94.027,93.97,3.62549412]
[1773681958151,10.06332323,94.027,93.98,3.62549412]
[1773681960158,10.06332323,94.027,93.97,3.62549412]
[1773681960451,10.06332323,94.027,93.96,3.62549412]
[1773681960757,3.62549412,94.01,93.95,3.62549412]
[1773681960961,10.03014724,93.989,93.892,37.28]
[1773681961158,10.03014724,93.979,93.92,3.62549412]
[1773681961359,10.03014724,93.979,93.91,3.62549412]
[1773681963662,10.03014724,93.979,93.92,3.62549412]
[1773681963961,10.03014724,93.979,93.91,3.62549412]
[1773681966660,10.03014724,93.979,93.92,3.62549412]
[1773681967161,19.148,93.997,93.91,3.62549412]
[1773681967162,10.03573309,93.969,93.91,3.62549412]
[1773681968361,3.62549412,93.96,93.9,3.62549412]
[1773681968559,10.03547718,93.959,93.9,3.62549412]
[1773681969464,10.03547718,93.959,93.91,3.62549412]
[1773681970264,10.03547718,93.959,93.891,38.92]
[1773681970465,10.03547718,93.959,93.9,3.62549412]
[1773681975966,10.03547718,93.959,93.891,38.92]
[1773681976261,10.03547718,93.959,93.892,82.725]
[1773681977263,10.04359983,93.949,93.892,82.725]
[1773681979166,10.04359983,93.949,93.893,82.725]
[1773681980067,10.04359983,93.949,93.894,82.725]
[1773681980562,10.03729343,93.939,93.88,3.62549412]
[1773681980764,10.03729343,93.909,93.806,31.94]
[1773681981065,10.03729343,93.909,93.85,3.62549412]
[1773681981266,10.03729343,93.909,93.84,3.62549412]
[1773681982766,10.03729343,93.909,93.86,3.62549412]
[1773681985070,10.03729343,93.909,93.851,39.8]
[1773681985270,10.03729343,93.909,93.86,3.62549412]
[1773681987468,10.03729343,93.909,93.804,31.94]
[1773681987469,10.09592859,93.926,93.87,3.62549412]
[1773681990878,10.18460446,93.919,93.86,3.62549412]
[1773681991077,10.18460446,93.919,93.861,82.725]
[1773681991278,10.18460446,93.919,93.87,3.62549412]
[1773681994183,10.18460446,93.919,93.871,82.725]
[1773681997284,10.18460446,93.919,93.872,82.725]
[1773682000188,10.18460446,93.919,93.873,82.725]
[1773682003190,10.18460446,93.919,93.874,82.725]
[1773682006389,10.18460446,93.919,93.875,82.725]
[1773682009194,10.18460446,93.919,93.876,82.725]
[1773682010594,10.22343031,93.939,93.88,3.62792042]
[1773682012194,10.22343031,93.939,93.881,82.725]
[1773682012991,10.22211907,93.952,93.882,82.725]
[1773682013194,10.22211907,93.952,93.9,3.62792042]
[1773682016791,10.21305427,93.949,93.89,43.74792042]
[1773682018196,10.21305427,93.949,93.891,82.725]
[1773682018799,10.21517969,93.939,93.88,3.62792042]
[1773682019499,10.21517969,93.939,93.877,40.22]
[1773682020700,10.21517969,93.939,93.88,3.62792042]
[1773682020901,10.22507277,93.929,93.867,449.37225521]
[1773682021102,10.22507277,93.919,93.867,449.37225521]
[1773682021796,10.22507277,93.919,93.87,3.62792042]
[1773682022700,10.22507277,93.919,93.88,3.62792042]
[1773682023500,10.22507277,93.919,93.872,40.32]
[1773682024003,10.22507277,93.919,93.88,3.62792042]
[1773682027903,10.22507277,93.919,93.873,82.725]
[1773682030305,10.22507277,93.919,93.874,82.725]
[1773682030908,10.19720882,93.942,93.89,3.62792042]
[1773682032504,10.19720882,93.942,93.875,82.725]
[1773682032505,10.20493386,93.939,93.88,3.62792042]
[1773682032699,10.20493386,93.929,93.875,82.725]
[1773682036307,10.20493386,93.929,93.876,82.725]
[1773682038008,3.62792042,93.92,93.876,82.725]
[1773682038207,3.62792042,93.92,93.868,40.96]
[1773682038208,10.19353368,93.919,93.868,123.685]
[1773682038912,10.17885651,93.93,93.88,3.62792042]
[1773682039105,10.17885651,93.93,93.89,3.62792042]
[1773682044709,10.17885651,93.93,93.869,82.725]
[1773682045012,10.17885651,93.93,93.88,3.62792042]
[1773682049613,13.80677693,93.93,93.87,82.725]
[1773682049818,10.13359682,93.919,93.868,40.96]
[1773682050116,10.13359682,93.919,93.85,3.62792042]
[1773682050117,10.13359682,93.909,93.85,3.62792042]
[1773682051616,10.13359682,93.909,93.86,3.62792042]
[1773682052718,10.13359682,93.909,93.87,3.62792042]
[1773682053119,10.13359682,93.909,93.86,3.62792042]
[1773682057324,10.13359682,93.909,93.861,82.725]
[1773682060325,10.13359682,93.909,93.86,3.62792042]
[1773682062723,10.13359682,93.909,93.86,3.62900065]
[1773682065032,10.13359682,93.909,93.85,3.62900065]
[1773682065229,10.13359682,93.909,93.851,82.725]
[1773682065527,10.1355388,93.9,93.816,1.85371128]
[1773682065730,10.1355388,93.9,93.815,501.59813697]
[1773682065731,10.1355388,93.9,93.85,3.62900065]
[1773682068232,10.1355388,93.9,93.86,3.62900065]
[1773682070133,10.1355388,93.9,93.843,42.68]
[1773682070340,10.30475798,93.918,93.87,3.62900065]
[1773682073740,10.46553719,93.915,93.817,1.85385447]
[1773682073943,3.62900065,93.9,93.84,3.62900065]
[1773682074243,10.46553719,93.899,93.841,82.725]
[1773682076245,10.46559344,93.897,93.841,82.725]
[1773682076445,10.46559344,93.889,93.841,82.725]
[1773682078346,10.46559344,93.889,93.831,82.725]
[1773682078844,10.46559344,93.889,93.83,3.62900065]
[1773682078845,3.62900065,93.88,93.832,82.725]
[1773682079049,10.41760102,93.879,93.82,3.62900065]
[1773682082149,10.47823691,93.859,93.815,458.97813697]
[1773682083248,10.47823691,93.859,93.82,3.62900065]
[1773682084050,10.47471826,93.874,93.82,3.62900065]
[1773682085155,10.47471826,93.874,93.83,3.62900065]
[1773682085451,10.47471826,93.874,93.82,3.62900065]
[1773682087057,10.46327929,93.859,93.815,458.97813697]
[1773682088457,10.46345151,93.849,93.805,82.725]
[1773682088652,10.45239024,93.839,93.784,42.78]
[1773682088852,10.45239024,93.839,93.78,3.62900065]
[1773682089052,10.45239024,93.839,93.773,42.7]
[1773682089457,10.45239024,93.829,93.773,42.7]
[1773682089752,10.45239024,93.829,93.78,3.62900065]
[1773682090356,10.45239024,93.829,93.773,42.7]
[1773682090556,10.45239024,93.829,93.78,3.62900065]
[1773682090957,10.45239024,93.829,93.79,3.62900065]
[1773682091157,10.45239024,93.829,93.78,3.62900065]
[1773682092054,10.45239024,93.829,93.773,42.7]
[1773682092259,3.62900065,93.8,93.74,43.14]
[1773682092559,10.46718173,93.799,93.74,3.62900065]
[1773682092751,10.46718173,93.799,93.75,3.62900065]
[1773682093558,10.46718173,93.799,93.74,3.62900065]
[1773682094162,10.47135465,93.759,93.69,3.62900065]
[1773682094469,10.47135465,93.759,93.667,42.28]
[1773682094760,10.47102161,93.749,93.69,3.62900065]
[1773682095156,10.47102161,93.749,93.68,3.62900065]
[1773682095357,10.47102161,93.739,93.68,3.62900065]
[1773682095660,10.47102161,93.739,93.69,3.62900065]
[1773682096161,10.45650739,93.719,93.621,42.5]
[1773682096361,10.45650739,93.719,93.66,3.62900065]
[1773682097163,10.45650739,93.719,93.65,3.62900065]
[1773682097463,10.45650739,93.719,93.66,3.62900065]
[1773682097760,10.67303173,93.709,93.64,3.62900065]
[1773682098262,10.67303173,93.709,93.66,3.62900065]
[1773682099264,10.67303173,93.709,93.639,42.62]
[1773682099564,10.67303173,93.709,93.65,3.62900065]
[1773682101566,10.70502716,93.699,93.64,3.62900065]
[1773682101958,10.70502716,93.699,93.65,3.62900065]
[1773682102963,10.72443447,93.716,93.68,3.62900065]
[1773682103161,10.72443447,93.739,93.68,3.62900065]
[1773682103365,10.72443447,93.739,93.69,3.62900065]
[1773682105969,10.72443447,93.739,93.7,3.62900065]
[1773682106371,10.72443447,93.739,93.69,3.62900065]